bitfinex/quotes_SOLUSD_20220105
["timestamp","ask_amount","ask_price","bid_price","bid_amount"]
[1641407640088,5.0,164.4,164.31,7.29]
[1641407641795,3.0,164.4,164.35,9.1184]
[1641407641993,7.29,164.56,164.35,7.29]
[1641407642193,7.29,164.58,164.35,7.29]
[1641407642592,2.14907934,164.49,164.35,7.29]
[1641407643493,2.14907934,164.49,164.4,9.1158]
[1641407643912,2.14907934,164.49,164.37,2.29]
[1641407644113,74.6233,164.56,164.37,2.29]
[1641407644514,74.6233,164.56,164.37,32.6735]
[1641407645517,46.1258,164.6,164.37,11.77078559]
[1641407645715,46.1258,164.6,164.39,30.3791]
[1641407645917,46.1258,164.6,164.4,7.29]
[1641407646315,2.83827005,164.53,164.4,7.29]
[1641407646919,7.63935734,164.5,164.4,7.29]
[1641407647116,5.0,164.5,164.4,7.29]
[1641407647715,35.85679769,164.5,164.4,7.29]
[1641407647916,35.85679769,164.5,164.36,33.1704]
[1641407648115,2.28596967,164.49,164.36,30.1704]
[1641407648920,5.0,164.4,164.36,39.2883]
[1641407649117,5.0,164.4,164.36,16.4079]
[1641407649319,5.0,164.4,164.36,7.29]
[1641407650819,5.0,164.5,164.36,7.29]
[1641407651018,5.0,164.5,164.36,16.7808967]
[1641407651520,2.2292573,164.49,164.38,9.1166]
[1641407652521,2.2292573,164.49,164.39,9.1161]
[1641407653321,2.2292573,164.49,164.39,4.1161]
[1641407653921,2.2292573,164.49,164.37,92.0161]
[1641407654124,2.2292573,164.49,164.37,99.3061]
[1641407654829,48.6918,164.54,164.39,9.1161]
[1641407655023,48.6918,164.54,164.39,7.29]
[1641407656033,2.835104,164.53,164.39,7.29]
[1641407656225,2.835104,164.53,164.4,9.1151]
[1641407656425,2.835104,164.53,164.41,7.29]
[1641407658331,2.835104,164.53,164.41,16.4049]
[1641407658533,2.835104,164.53,164.41,7.29]
[1641407658932,2.835104,164.53,164.41,2.29]
[1641407659132,2.895104,164.53,164.41,2.29]
[1641407659937,2.895104,164.53,164.37,100.19]
[1641407660634,3.155104,164.53,164.37,100.19]
[1641407661238,3.155104,164.53,164.37,95.19]
[1641407661440,3.155104,164.53,164.39,92.9]
[1641407662040,2.895104,164.53,164.39,92.9]
[1641407663869,2.895104,164.53,164.39,87.9]
[1641407664369,2.895104,164.53,164.39,92.9]
[1641407664370,3.155104,164.53,164.39,92.9]
[1641407664971,2.895104,164.53,164.39,92.9]
[1641407665573,3.155104,164.53,164.39,92.9]
[1641407666172,2.895104,164.53,164.39,92.9]
[1641407667975,3.155104,164.53,164.39,92.9]
[1641407668977,3.155104,164.53,164.39,87.9]
[1641407669179,7.29,164.52,164.39,87.9]
[1641407669377,29.5384049,164.51,164.39,87.9]
[1641407669577,2.37277643,164.5,164.39,87.9]
[1641407669978,2.37277643,164.5,164.36,73.4616]
[1641407670383,0.06,164.49,164.34,92.9]
[1641407671979,0.06,164.49,164.3,7.29]
[1641407672182,7.29,164.48,164.3,7.29]
[1641407672380,26.6787551,164.46,164.3,7.29]
[1641407672580,26.7387551,164.46,164.3,7.29]
[1641407672782,26.9987551,164.46,164.3,7.29]
[1641407675881,26.9987551,164.46,164.33,92.9]
[1641407676083,3.19766931,164.46,164.33,92.9]
[1641407676582,7.29,164.45,164.33,92.9]
[1641407676782,2.50965949,164.43,164.33,92.9]
[1641407676982,10.05965949,164.43,164.33,92.9]
[1641407677183,0.06,164.42,164.33,92.9]
[1641407677482,7.29,164.41,164.33,92.9]
[1641407677682,33.95879575,164.4,164.33,92.9]
[1641407678085,33.95879575,164.4,164.33,87.9]
[1641407678483,2.79059966,164.4,164.33,87.9]
[1641407678684,0.06,164.39,164.33,87.9]
[1641407678985,0.06,164.39,164.36,92.9]
[1641407680184,0.06,164.39,164.23,179.7953]
[1641407680389,24.6477,164.39,164.23,179.7953]
[1641407680986,24.6477,164.39,164.23,189.72480322]
[1641407681986,24.9077,164.39,164.23,189.72480322]
[1641407682386,24.6477,164.39,164.23,189.72480322]
[1641407682586,24.9077,164.39,164.23,189.72480322]
[1641407682990,24.9077,164.39,164.23,184.72480322]
[1641407683186,24.6477,164.39,164.23,184.72480322]
[1641407683791,24.6477,164.39,164.23,100.19]
[1641407683994,31.9377,164.39,164.2,0.30438902]
[1641407684187,32.4377,164.39,164.2,0.30438902]
[1641407684390,27.55420393,164.38,164.25,92.9]
[1641407684590,7.35,164.37,164.25,92.9]
[1641407684789,2.2018766,164.36,164.25,92.9]
[1641407684989,7.35,164.35,164.25,92.9]
[1641407685389,7.61,164.35,164.25,92.4]
[1641407686990,7.61,164.35,164.21,92.9]
[1641407687996,5.0,164.25,164.21,92.9]
[1641407688825,4.5,164.25,164.21,92.9]
[1641407689730,91.2118,164.34,164.21,92.9]
[1641407689925,0.06,164.33,164.21,92.9]
[1641407690128,2.90629805,164.32,164.21,92.9]
[1641407692129,0.06,164.31,164.21,92.9]
[1641407693029,5.0,164.21,164.2,0.30438902]
[1641407693233,5.0,164.21,164.2,6.368689]
[1641407694030,5.0,164.21,164.2,0.30438902]
[1641407694630,0.0001,164.21,164.2,39.30438902]
[1641407694830,0.0001,164.21,164.2,132.20438902]
[1641407695632,0.0001,164.21,164.2,99.268689]
[1641407696634,0.0001,164.21,164.2,93.20438902]
[1641407697031,0.0001,164.21,164.2,0.30438902]
[1641407698035,0.0001,164.21,164.14,4.9120898]
[1641407698036,4.69561098,164.2,164.14,4.9120898]
[1641407698441,2.6305897,164.19,164.14,4.9120898]
[1641407698735,2.6305897,164.19,164.14,4.4120898]
[1641407699334,4.69561098,164.2,164.14,4.4120898]
[1641407700537,2.17095413,164.19,164.14,4.4120898]
[1641407702537,1.67095413,164.19,164.14,4.4120898]
[1641407703140,0.5879102,164.14,164.07,49.2949]
[1641407703341,0.5879102,164.14,164.05,7.29]
[1641407703547,0.5879102,164.14,164.06,515.72336873]
[1641407704242,3.06026584,164.14,164.07,0.49034954]
[1641407705741,3.06026584,164.14,164.06,92.98121775]
[1641407705942,3.06026584,164.14,164.06,92.48121775]
[1641407706343,3.06026584,164.14,164.06,92.9]
[1641407706543,0.06,164.13,164.06,92.9]
[1641407706743,0.06,164.13,164.07,0.41984426]
[1641407707547,0.06,164.13,164.07,10.27712526]
[1641407708144,0.06,164.13,164.08,7.29]
[1641407709446,0.06,164.13,164.06,92.9]
[1641407709847,2.23711308,164.12,164.06,92.9]
[1641407710249,2.23711308,164.12,164.03,92.9]
[1641407710850,2.23711308,164.12,164.01,581.59376858]
[1641407712653,0.5879102,164.14,164.01,34.24199197]
[1641407712854,0.5879102,164.14,164.01,41.53199197]
[1641407713054,0.26,164.19,164.01,36.53199197]
[1641407713453,0.26,164.21,164.01,31.24847079]
[1641407713656,3.02755149,164.2,164.01,31.24847079]
[1641407713858,2.96755149,164.2,164.01,31.24847079]
[1641407715086,74.7138,164.29,164.01,125.39847079]
[1641407715290,0.06,164.31,164.04,0.30230435]
[1641407715489,25.60902148,164.31,164.05,7.29]
[1641407715788,25.60902148,164.31,164.09,9.1319]
[1641407715989,26.10902148,164.31,164.1,83.2583]
[1641407716188,2.93807289,164.3,164.1,83.2583]
[1641407716390,0.06,164.29,164.1,83.2583]
[1641407716589,23.0837,164.29,164.1,83.2583]
[1641407717389,23.0837,164.29,164.1,92.3896]
[1641407717989,23.0837,164.29,164.1,87.3896]
[1641407718191,23.0837,164.29,164.1,78.2583]
[1641407718492,0.06,164.29,164.13,9.1297]
[1641407718697,0.06,164.29,164.14,7.29]
[1641407718895,0.06,164.29,164.15,7.29]
[1641407719091,0.06,164.29,164.16,7.29]
[1641407721293,0.06,164.29,164.16,100.19]
[1641407723096,0.06,164.29,164.16,95.19]
[1641407725600,0.06,164.29,164.16,92.9]
[1641407725900,7.35,164.29,164.12,22.9295]
[1641407726101,22.69369435,164.28,164.08,244.9813]
[1641407726301,22.69369435,164.28,164.14,92.9]
[1641407726302,7.35,164.27,164.14,92.9]
[1641407726501,2.92803824,164.26,164.14,92.9]
[1641407726705,7.35,164.25,164.14,92.9]
[1641407726904,31.4325381,164.24,164.14,92.9]
[1641407727202,2.40750333,164.22,164.14,92.9]
[1641407727803,2.66750333,164.22,164.14,92.9]
[1641407728007,2.66750333,164.22,164.08,244.9813]
[1641407728204,2.40750333,164.22,164.08,244.9813]
[1641407729003,5.0,164.14,164.08,244.9813]
[1641407729206,5.0,164.14,164.07,92.9]
[1641407729405,7.29,164.28,164.08,16.81649197]
[1641407729605,7.29,164.28,164.09,76.9528]
[1641407729806,7.79,164.28,164.1,7.29]
[1641407730009,31.02221144,164.28,164.1,7.29]
[1641407730406,2.34743204,164.27,164.1,7.29]
[1641407733119,2.34743204,164.27,164.11,22.5586]
[1641407733319,2.34743204,164.27,164.11,29.8486]
[1641407733736,2.60743204,164.27,164.11,29.8486]
[1641407734137,2.60743204,164.27,164.11,24.8486]
[1641407734939,26.89313204,164.27,164.11,24.8486]
[1641407735437,26.63313204,164.27,164.11,24.8486]
[1641407735638,26.57313204,164.27,164.11,24.8486]
[1641407735838,2.28743204,164.27,164.11,24.8486]
[1641407736447,2.28743204,164.27,164.11,34.37509197]
[1641407736639,2.28743204,164.27,164.13,9.13]
[1641407736842,2.28743204,164.27,164.13,16.42]
[1641407737042,2.28743204,164.27,164.13,7.29]
[1641407737444,7.29,164.33,164.13,30.6653]
[1641407737641,24.6652,164.37,164.15,9.1287]
[1641407737841,31.9552,164.37,164.16,79.843]
[1641407738044,32.0152,164.37,164.17,7.29]
[1641407738242,32.0152,164.37,164.18,24.6673]
[1641407738443,2.61484415,164.36,164.19,7.29]
[1641407739044,2.61484415,164.36,164.19,2.29]
[1641407741045,2.67484415,164.36,164.2,92.9]
[1641407741249,2.67484415,164.36,164.21,7.29]
[1641407741650,2.93484415,164.36,164.21,7.29]
[1641407743456,0.06,164.36,164.21,7.29]
[1641407743857,0.06,164.36,164.28,9.1215]
[1641407744060,0.06,164.36,164.29,2.29]
[1641407744859,2.51375725,164.35,164.29,2.29]
[1641407746269,2.51375725,164.35,164.25,96.924]
[1641407749172,5.0,164.29,164.25,96.924]
[1641407749373,5.0,164.29,164.23,7.29]
[1641407749777,5.0,164.29,164.25,10.12410706]
[1641407753998,5.0,164.29,164.25,17.41410706]
[1641407754200,5.0,164.29,164.25,12.41410706]
[1641407754400,5.0,164.29,164.25,7.29]
[1641407759205,5.0,164.29,164.25,2.29]
[1641407762807,7.2580864,164.29,164.25,2.29]
[1641407763408,5.0,164.29,164.25,2.29]
[1641407763609,5.0,164.29,164.21,7.29]
[1641407763808,5.0,164.29,164.2,92.9]
[1641407764209,5.0,164.25,164.2,92.9]
[1641407766010,5.0,164.25,164.2,102.66299594]
[1641407767215,5.0,164.25,164.21,9.1266]
[1641407767412,5.0,164.25,164.2,109.95299594]
[1641407768314,5.0,164.29,164.23,9.1256]
[1641407768512,5.0,164.29,164.24,7.29]
[1641407769112,5.0,164.29,164.24,2.29]
[1641407769912,5.0,164.29,164.27,9.1231]
[1641407770112,5.0,164.29,164.28,62.06429998]
[1641407770313,5.0,164.29,164.28,56.0]
[1641407771117,5.0,164.29,164.26,7.29]
[1641407771318,5.0,164.29,164.27,6.06429998]
[1641407772319,7.21101687,164.29,164.27,6.06429998]
[1641407772517,7.21101687,164.29,164.2,100.19]
[1641407772720,7.21101687,164.29,164.2,92.9]
[1641407773121,2.21101687,164.29,164.2,92.9]
[1641407773320,5.0,164.27,164.2,92.9]
[1641407774120,10.0,164.27,164.2,92.9]
[1641407777519,10.0,164.27,164.2,100.19]
[1641407777920,10.0,164.27,164.22,9.1264]
[1641407779422,10.0,164.27,164.23,9.1259]
[1641407781623,10.0,164.27,164.22,9.1265]
[1641407782124,10.0,164.27,164.2,100.19]
[1641407782725,10.0,164.27,164.21,9.1271]
[1641407785437,22.8565,164.4,164.22,17.05299594]
[1641407785635,24.0835,164.39,164.23,104.3096]
[1641407786034,24.0835,164.39,164.23,114.07259594]
[1641407786256,2.68412074,164.38,164.26,9.1242]
[1641407786857,2.68412074,164.38,164.25,7.29]
[1641407787356,2.68412074,164.38,164.28,9.1236]
[1641407787556,2.68412074,164.38,164.25,7.29]
[1641407788460,2.68412074,164.38,164.26,9.1247]
[1641407788858,2.68412074,164.38,164.26,33.8275]
[1641407789657,2.68412074,164.38,164.26,9.1247]
[1641407792563,2.68412074,164.38,164.27,9.1241]
[1641407792764,1.68412074,164.38,164.27,9.1241]
[1641407792966,1.68412074,164.38,164.28,0.87292286]
[1641407793865,1.68412074,164.38,164.25,7.29]
[1641407793866,1.68412074,164.38,164.26,22.9261]
[1641407794065,1.68412074,164.38,164.25,7.29]
[1641407794269,1.74412074,164.38,164.25,7.29]
[1641407794866,1.74412074,164.38,164.26,1.12329112]
[1641407796067,1.74412074,164.38,164.28,9.1236]
[1641407797068,1.74412074,164.38,164.28,7.29]
[1641407798070,1.74412074,164.38,164.28,16.414]
[1641407798468,1.74412074,164.38,164.28,7.29]
[1641407799069,1.74412074,164.38,164.29,9.1235]
[1641407801171,0.06,164.38,164.29,9.1235]
[1641407801373,0.06,164.38,164.3,9.1225]
[1641407801575,0.06,164.38,164.28,7.29]
[1641407802772,0.06,164.38,164.31,9.1222]
[1641407803172,0.06,164.38,164.29,24.7868]
[1641407804879,0.06,164.38,164.3,9.1229]
[1641407806678,0.06,164.38,164.29,33.9102]
[1641407806879,0.06,164.38,164.29,24.7868]
[1641407807080,0.06,164.38,164.28,7.29]
[1641407807280,5.0,164.3,164.28,7.29]
[1641407807480,5.0,164.3,164.29,6.06429998]
[1641407809085,5.0,164.3,164.29,15.18779998]
[1641407809382,0.0001,164.3,164.29,52.06429998]
[1641407810884,2.91348459,164.42,164.31,9.1224]
[1641407812190,2.91348459,164.42,164.31,4.1224]
[1641407816218,2.97348459,164.42,164.29,9.1231]
[1641407816417,3.23348459,164.42,164.28,7.29]
[1641407817219,5.0,164.29,164.28,7.29]
[1641407817420,5.0,164.29,164.28,13.35429998]
[1641407822325,5.0,164.29,164.28,2.29]
[1641407822524,5.0,164.29,164.28,8.35429998]
[1641407822925,5.0,164.29,164.25,9.1256]
[1641407823125,5.0,164.29,164.23,7.29]
[1641407823928,5.0,164.29,164.23,16.4163]
[1641407824333,5.0,164.29,164.23,7.29]
[1641407825830,5.0,164.29,164.24,9.126]
[1641407827231,5.0,164.29,164.24,4.126]
[1641407828933,5.0,164.29,164.23,16.4167]
[1641407830935,5.0,164.29,164.24,9.126]
[1641407831535,5.0,164.29,164.23,7.29]
[1641407832337,5.0,164.24,164.23,7.29]
[1641407832535,5.0,164.24,164.23,13.35429998]
[1641407832936,5.0,164.24,164.23,52.48089998]
[1641407833536,10.0,164.24,164.23,52.48089998]
[1641407834741,0.0038,164.24,164.23,73.35429998]
[1641407834942,0.0038,164.24,164.23,113.18151406]
[1641407835140,82.1246,164.46,164.24,90.0]
[1641407835339,22.5255,164.45,164.25,32.2323]
[1641407835541,24.2584,164.41,164.26,76.6461]
[1641407835739,2.25310409,164.4,164.32,9.1214]
[1641407835940,2.25310409,164.4,164.27,31.391]
[1641407837141,2.25310409,164.4,164.3,9.1229]
[1641407837342,2.25310409,164.4,164.3,4.1229]
[1641407838247,2.31310409,164.4,164.3,4.1229]
[1641407838546,0.06,164.4,164.3,4.1229]
[1641407838789,0.06,164.4,164.3,10.41171049]
[1641407838986,0.06,164.4,164.35,9.12]
[1641407839787,22.396,164.44,164.34,70.0]
[1641407840788,22.396,164.44,164.36,9.1194]
[1641407841897,24.7784,164.52,164.37,0.06]
[1641407842092,97.696,164.51,164.37,7.29]
[1641407842290,97.696,164.51,164.37,2.29]
[1641407842892,2.30174187,164.5,164.39,9.1177]
[1641407844092,2.30174187,164.5,164.37,2.29]
[1641407844294,2.56174187,164.5,164.37,2.29]
[1641407844692,2.56174187,164.5,164.33,7.29]
[1641407844892,23.1402,164.49,164.33,7.29]
[1641407845094,23.4002,164.49,164.33,7.29]
[1641407845292,23.1402,164.49,164.33,7.29]
[1641407845493,23.4002,164.49,164.33,32.1158]
[1641407846293,23.4002,164.49,164.34,9.1205]
[1641407846896,23.4002,164.49,164.33,32.1758]
[1641407847295,23.4002,164.49,164.35,4.1195]
[1641407847597,23.1402,164.49,164.33,42.58751049]
[1641407848598,23.1402,164.49,164.33,32.1758]
[1641407848796,23.1402,164.49,164.37,9.1188]
[1641407849596,23.1402,164.49,164.33,32.1758]
[1641407850100,23.1402,164.49,164.38,9.1183]
[1641407851197,23.1402,164.49,164.39,9.1176]
[1641407852299,25.83264187,164.5,164.38,9.1182]
[1641407852498,49.91754187,164.5,164.38,9.1182]
[1641407852701,49.91754187,164.5,164.36,32.0589]
[1641407853805,49.91754187,164.5,164.37,9.1188]
[1641407854202,49.91754187,164.5,164.36,32.0589]
[1641407855004,50.17754187,164.5,164.36,7.29]
[1641407855205,50.17754187,164.5,164.33,22.7711]
[1641407856002,50.17754187,164.5,164.32,83.5889]
[1641407856405,49.91754187,164.5,164.32,83.5889]
[1641407856703,49.91754187,164.5,164.32,83.6489]
[1641407857304,49.91754187,164.5,164.34,0.06]
[1641407857525,49.91754187,164.5,164.34,7.35]
[1641407857729,49.91754187,164.5,164.35,23.1216]
[1641407858329,4.99,164.37,164.35,23.1216]
[1641407858527,4.99,164.37,164.36,6.06429998]
[1641407858827,47.6158,164.5,164.36,6.06429998]
[1641407858828,26.29901843,164.47,164.37,4.1287]
[1641407859028,26.29901843,164.47,164.37,28.7306]
[1641407860028,3.00805996,164.49,164.37,28.7306]
[1641407860429,3.00805996,164.49,164.37,24.6019]
[1641407860630,3.00805996,164.49,164.38,9.118]
[1641407861632,3.00805996,164.49,164.37,33.7205]
[1641407864737,3.00805996,164.49,164.38,9.118]
[1641407864935,3.16904127,164.49,164.38,9.118]
[1641407866939,0.16098131,164.49,164.32,9.2893]
[1641407867142,0.16098131,164.49,164.27,9.1488]
[1641407867143,7.29,164.34,164.27,9.1488]
[1641407867342,7.29,164.34,164.24,540.10777911]
[1641407867540,7.55,164.34,164.24,540.10777911]
[1641407867745,8.05,164.34,164.17,223.046]
[1641407867940,7.29,164.33,164.18,2.57484907]
[1641407868341,8.05,164.33,164.09,9.2017]
[1641407868540,56.2932,164.33,164.11,79.9192]
[1641407868942,1.47846154,164.32,164.1,200.0]
[1641407869141,7.29,164.31,164.1,200.0]
[1641407869342,7.79,164.31,164.11,2.36782224]
[1641407869542,8.05,164.31,164.11,2.36782224]
[1641407870242,2.63217776,164.11,164.1,200.0]
[1641407870446,2.63217776,164.11,164.1,208.59630914]
[1641407870847,7.776e-05,164.11,164.1,206.06429998]
[1641407871048,7.29,164.29,164.11,51.0]
[1641407871248,7.29,164.29,164.11,51.06]
[1641407871449,7.55,164.29,164.11,51.06]
[1641407871750,32.49315789,164.29,164.12,2.75282299]
[1641407872347,32.99315789,164.29,164.12,2.75282299]
[1641407875357,2.24717701,164.12,164.1,278.1925]
[1641407875555,2.24717701,164.12,164.11,8.3056735]
[1641407876278,7.701e-05,164.12,164.11,6.06429998]
[1641407880291,7.701e-05,164.12,164.11,1.06429998]
[1641407881291,7.701e-05,164.12,164.1,200.0]
[1641407882996,7.701e-05,164.12,164.11,1.06429998]
[1641407885499,6.96789999,164.11,164.1,200.0]
[1641407885696,3.93570002,164.11,164.1,200.0]
[1641407887301,6.96789999,164.11,164.1,200.0]
[1641407887732,3.93570002,164.11,164.1,200.0]
[1641407889429,6.96789999,164.11,164.1,200.0]
[1641407889629,3.93570002,164.11,164.1,200.0]
[1641407890030,4.19570002,164.11,164.1,200.0]
[1641407890231,4.19570002,164.11,164.1,160.4]
[1641407890431,68.19570002,164.11,164.1,18.4371]
[1641407890631,71.22789999,164.11,164.03,0.64331073]
[1641407891031,78.51789999,164.11,164.03,0.64331073]
[1641407891831,79.01789999,164.11,164.03,0.64331073]
[1641407892031,79.01789999,164.11,163.91,592.36380065]
[1641407892233,81.0,164.1,163.91,592.36380065]
[1641407892433,23.49381283,164.08,163.91,592.36380065]
[1641407892632,7.29,164.07,163.92,2.24517564]
[1641407892833,7.79,164.07,163.92,2.24517564]
[1641407893033,8.05,164.07,163.92,2.24517564]
[1641407893440,3.93570002,164.03,163.91,92.9]
[1641407893640,24.31763367,164.01,163.91,92.9]
[1641407893835,7.29,164.0,163.84,75.8802]
[1641407894040,7.55,164.0,163.84,75.8802]
[1641407894236,8.05,164.0,163.84,75.8802]
[1641407894436,8.05,164.0,163.9,92.9]
[1641407895036,8.05,164.0,163.9,69.3971]
[1641407895337,100.67846154,164.0,163.75,4.9120898]
[1641407895737,0.3226709,163.92,163.75,4.9120898]
[1641407895937,28.1949918,163.9,163.76,2.68587174]
[1641407896140,7.29,163.89,163.75,4.9120898]
[1641407896439,7.79,163.89,163.75,4.9120898]
[1641407896636,8.05,163.89,163.75,4.9120898]
[1641407897941,7.79,163.89,163.75,4.9120898]
[1641407898141,7.79,163.89,163.76,2.71512291]
[1641407898342,7.29,163.89,163.76,2.71512291]
[1641407898542,7.29,163.89,163.76,13.66850346]
[1641407898742,7.29,163.89,163.77,10.95338055]
[1641407900341,7.55,163.89,163.76,2.71512291]
[1641407900541,7.29,163.89,163.76,2.71512291]
[1641407901842,7.29,163.89,163.76,13.36739235]
[1641407902643,7.29,163.89,163.76,2.77512291]
[1641407903645,7.55,163.89,163.76,2.77512291]
[1641407905448,2.22487709,163.76,163.75,4.9120898]
[1641407905648,2.22487709,163.76,163.75,7.47607288]
[1641407906150,2.22487709,163.76,163.75,36.47607288]
[1641407906551,2.22487709,163.76,163.75,4.9120898]
[1641407907650,2.22487709,163.76,163.75,7.38868475]
[1641407908254,2.22487709,163.76,163.75,4.9120898]
[1641407908450,2.22487709,163.76,163.75,4.4120898]
[1641407908651,8.28927703,163.76,163.75,4.4120898]
[1641407908854,2.22487709,163.76,163.75,4.4120898]
[1641407909851,0.00487709,163.76,163.75,4.4120898]
[1641407910452,0.5879102,163.75,163.74,2.51538087]
[1641407911055,0.5879102,163.75,163.68,23.4515]
[1641407911755,0.5879102,163.75,163.66,93.20539336]
[1641407912155,0.5879102,163.75,163.67,2.77246924]
[1641407912462,0.6479102,163.75,163.67,2.27246924]
[1641407912755,0.6479102,163.75,163.66,93.20539336]
[1641407912955,26.54763468,163.73,163.66,93.20539336]
[1641407913783,26.80763468,163.73,163.66,93.20539336]
[1641407914185,7.29,163.74,163.66,93.20539336]
[1641407914784,7.61,163.74,163.66,93.20539336]
[1641407915187,7.35,163.74,163.66,93.20539336]
[1641407915386,7.35,163.74,163.66,92.70539336]
[1641407915985,7.35,163.74,163.68,92.9]
[1641407915986,0.06,163.74,163.68,92.9]
[1641407916185,0.06,163.74,163.68,95.14484958]
[1641407916588,0.06,163.74,163.68,92.9]
[1641407916987,0.06,163.74,163.62,74.2891]
[1641407917587,0.06,163.74,163.63,2.64895162]
[1641407918991,7.35,163.74,163.63,2.64895162]
[1641407919490,7.61,163.74,163.63,2.64895162]
[1641407920391,7.35,163.74,163.63,2.14895162]
[1641407922093,0.0079102,163.75,163.64,7.29]
[1641407922292,0.00487709,163.76,163.66,2.52099073]
[1641407922493,0.00487709,163.76,163.67,55.612]
[1641407922699,0.00487709,163.76,163.67,146.262]
[1641407923093,1.71933762,163.91,163.68,10.59226944]
[1641407923301,30.69335917,163.92,163.69,10.03181242]
[1641407923493,0.06,163.91,163.69,4.0961124]
[1641407923695,0.48228797,163.9,163.7,43.23129032]
[1641407923895,0.48228797,163.9,163.71,37.68]
[1641407924096,0.48228797,163.9,163.73,3.0]
[1641407924295,0.48228797,163.9,163.74,7.29]
[1641407924498,0.48228797,163.9,163.75,2.2612978]
[1641407924695,0.48228797,163.9,163.76,7.29]
[1641407924898,0.06,163.89,163.76,7.29]
[1641407925597,0.06,163.89,163.75,2.2612978]
[1641407926798,0.06,163.89,163.76,0.06]
[1641407926999,0.06,163.89,163.77,7.29]
[1641407927198,0.06,163.89,163.78,2.26709322]
[1641407927797,0.06,163.89,163.79,7.29]
[1641407928200,0.06,163.89,163.8,0.06]
[1641407928399,0.06,163.89,163.82,0.06]
[1641407928597,0.06,163.89,163.83,2.98344085]
[1641407928797,0.06,163.89,163.83,3.04344085]
[1641407931604,0.36496146,163.92,163.83,3.04344085]
[1641407933506,7.29,163.95,163.83,3.04344085]
[1641407933705,31.21990112,163.97,163.83,3.04344085]
[1641407934109,7.29,163.98,163.83,2.98344085]
[1641407934507,0.47214491,163.97,163.83,2.98344085]
[1641407934906,0.47214491,163.97,163.83,10.27344085]
[1641407935707,7.29,164.02,163.84,0.06]
[1641407935909,7.29,164.02,163.85,7.29]
[1641407936507,7.29,164.02,163.86,0.06]
[1641407936707,0.4300087,164.01,163.87,2.21583537]
[1641407937509,0.4300087,164.01,163.88,0.06]
[1641407942339,0.4300087,164.01,163.87,2.21583537]
[1641407942535,4.94,163.88,163.87,9.50583537]
[1641407942737,4.94,163.88,163.87,46.50583537]
[1641407942937,0.4300087,164.01,163.88,4.94]
[1641407943337,0.4300087,164.01,163.89,7.29]
[1641407943536,30.00478712,164.12,163.9,0.06]
[1641407943537,9.00933762,164.08,163.9,0.06]
[1641407943738,24.24261657,164.05,163.91,7.29]
[1641407944037,24.74261657,164.05,163.92,0.06]
[1641407944238,0.5,164.05,163.93,7.29]
[1641407944437,0.41260376,164.08,163.94,2.47330531]
[1641407944637,0.41260376,164.08,163.95,7.29]
[1641407945237,0.41260376,164.08,163.96,0.06]
[1641407945436,0.41260376,164.08,163.97,10.07648578]
[1641407946537,3.0,164.12,163.97,10.07648578]
[1641407946938,3.0,164.12,163.97,20.66875522]
[1641407947342,3.45625706,164.12,163.97,20.66875522]
[1641407947547,2.95625706,164.12,163.98,2.43391963]
[1641407947751,2.5,164.12,163.99,7.29]
[1641407948346,2.0,164.12,164.0,9.1365]
[1641407948548,2.0,164.12,164.01,7.29]
[1641407948850,3.01277608,164.17,164.02,2.24834469]